bitfinex/quotes_BTCUSD_20241002
["timestamp","ask_amount","ask_price","bid_price","bid_amount"]
[1727862983414,0.262842,61409.0,61408.0,0.23387665]
[1727862983617,0.162854,61405.0,61401.0,0.24305865]
[1727862983830,0.325704,61406.0,61401.0,0.24305865]
[1727862984045,0.1,61408.0,61397.0,0.0803]
[1727862984046,0.162862,61402.0,61398.0,0.16287]
[1727862984285,0.1,61408.0,61395.0,0.479]
[1727862984498,0.325707,61405.0,61395.0,0.325756]
[1727862984710,0.162858,61403.0,61398.0,0.162869]
[1727862985115,0.16286,61403.0,61399.0,0.162868]
[1727862985332,0.1,61408.0,61394.0,0.47141076]
[1727862985547,0.002,61415.0,61394.0,0.47141076]
[1727862985548,0.16287,61399.0,61396.0,0.162876]
[1727862985755,0.325697,61407.0,61394.0,0.47141076]
[1727862985756,0.325725,61402.0,61395.0,0.488634]
[1727862985973,0.325725,61402.0,61396.0,0.162874]
[1727862986182,0.16287,61399.0,61398.0,0.001]
[1727862986384,0.325725,61402.0,61398.0,0.001]
[1727862986596,0.162867,61400.0,61398.0,0.001]
[1727862986800,0.325728,61401.0,61396.0,0.162876]
[1727862986801,0.162869,61399.0,61396.0,0.162876]
[1727862987007,0.162869,61399.0,61387.0,0.64783168]
[1727862987008,0.32574,61399.0,61395.0,0.003]
[1727862987219,0.162874,61397.0,61396.0,0.24305865]
[1727862987426,0.162877,61396.0,61395.0,0.002]
[1727862987634,0.162876,61397.0,61393.0,0.154884]
[1727862987842,0.162877,61396.0,61393.0,0.154884]
[1727862988661,0.32574,61399.0,61389.0,0.22835211]
[1727862988867,0.162876,61397.0,61393.0,0.162884]
[1727862989110,0.162876,61397.0,61393.0,0.152884]
[1727862989318,0.162876,61397.0,61395.0,0.000818]
[1727862989523,0.162876,61397.0,61395.0,0.005818]
[1727862989938,0.162876,61397.0,61396.0,0.0084897]
[1727862990150,0.02552969,61408.0,61396.0,0.0084897]
[1727862990373,0.162856,61404.0,61400.0,0.162865]
[1727862990582,0.262854,61405.0,61401.0,0.00325693]
[1727862990784,0.262854,61405.0,61400.0,0.162864]
[1727862990785,0.162859,61403.0,61402.0,0.0084897]
[1727862991006,0.162873,61398.0,61396.0,0.004]
[1727862991219,0.1,61402.0,61397.0,0.0084897]
[1727862991688,0.325733,61400.0,61397.0,0.0084897]
[1727862991895,0.162867,61400.0,61397.0,0.0084897]
[1727862992107,0.162871,61398.0,61397.0,0.0084897]
[1727862992553,0.325738,61399.0,61396.0,0.004]
[1727862992775,0.162874,61397.0,61396.0,0.004]
[1727862992993,0.162874,61397.0,61395.0,0.092818]
[1727862993202,0.162874,61397.0,61396.0,0.00849894]
[1727862993828,0.162874,61397.0,61396.0,0.01249894]
[1727862994649,0.162874,61397.0,61396.0,0.01449894]
[1727862995059,0.162874,61397.0,61396.0,0.006]
[1727862995263,0.162874,61397.0,61396.0,0.004]
[1727862995463,0.162874,61397.0,61396.0,0.008]
[1727862996837,0.18840439,61397.0,61396.0,0.008]
[1727862997750,0.162874,61397.0,61396.0,0.0165479]
[1727862998359,0.162874,61397.0,61396.0,0.008]
[1727862998561,0.162874,61397.0,61396.0,0.01657146]
[1727862998756,0.162874,61397.0,61396.0,0.008]
[1727862998973,0.162874,61397.0,61396.0,0.01657146]
[1727863002715,0.16451,61397.0,61396.0,0.01657146]
[1727863004221,0.001636,61397.0,61396.0,0.01657146]
[1727863008576,0.001636,61397.0,61396.0,0.17944846]
[1727863009198,0.001636,61397.0,61396.0,0.2652057]
[1727863009404,0.001636,61397.0,61396.0,0.3856057]
[1727863009734,0.001636,61397.0,61396.0,0.38234846]
[1727863011010,0.02716187,61397.0,61396.0,0.38234846]
[1727863014740,0.02716187,61397.0,61396.0,0.01657146]
[1727863014976,0.19003587,61397.0,61396.0,0.01657146]
[1727863015238,0.16451,61397.0,61396.0,0.01657146]
[1727863015482,0.001636,61397.0,61396.0,0.01657146]
[1727863016196,0.001636,61397.0,61396.0,0.17944846]
[1727863016713,0.001636,61397.0,61396.0,0.01657146]
[1727863017667,0.16451,61397.0,61396.0,0.01657146]
[1727863017889,0.001636,61397.0,61396.0,0.01657146]
[1727863018589,0.16451,61397.0,61396.0,0.01657146]
[1727863018820,0.001636,61397.0,61396.0,0.01657146]
[1727863019048,0.16451,61397.0,61396.0,0.01657146]
[1727863020774,0.001636,61397.0,61396.0,0.01657146]
[1727863021003,0.001636,61397.0,61396.0,0.18270563]
[1727863021249,0.001636,61397.0,61396.0,0.01657146]
[1727863021492,0.001636,61397.0,61396.0,0.17944846]
[1727863021922,0.001636,61397.0,61396.0,0.01657146]
[1727863022545,0.16451,61397.0,61396.0,0.01657146]
[1727863022753,0.001636,61397.0,61396.0,0.17944846]
[1727863022961,0.001636,61397.0,61396.0,0.18270563]
[1727863023192,0.001636,61397.0,61396.0,0.20244846]
[1727863023399,0.001636,61397.0,61396.0,0.37740523]
[1727863023605,0.001636,61397.0,61396.0,0.37414846]
[1727863025354,0.001636,61397.0,61396.0,0.70604125]
[1727863025552,0.001636,61397.0,61396.0,0.40000705]
[1727863025961,0.001636,61397.0,61396.0,0.35114846]
[1727863026754,0.02716297,61397.0,61396.0,0.37414846]
[1727863026953,0.02716297,61397.0,61396.0,0.63271629]
[1727863027178,0.02716297,61397.0,61396.0,0.73026996]
[1727863028617,0.02716297,61397.0,61396.0,0.70603578]
[1727863028818,0.02716297,61397.0,61396.0,0.42446795]
[1727863029031,0.02716297,61397.0,61396.0,0.17944846]
[1727863029447,0.02716297,61397.0,61396.0,0.22832871]
[1727863029649,0.02716297,61397.0,61396.0,0.17944846]
[1727863029856,0.02716297,61397.0,61396.0,0.22832871]
[1727863030062,0.02716297,61397.0,61396.0,0.17944846]
[1727863030280,0.02716297,61397.0,61396.0,0.01657146]
[1727863030281,0.19003697,61397.0,61396.0,0.01657146]
[1727863030492,0.02716297,61397.0,61396.0,0.01657146]
[1727863030890,0.02716297,61397.0,61396.0,0.17944846]
[1727863031118,0.02716297,61397.0,61396.0,0.01657146]
[1727863031731,0.02716297,61397.0,61396.0,0.17944846]
[1727863031988,0.02716297,61397.0,61396.0,0.18270563]
[1727863032108,0.02716297,61397.0,61396.0,0.01657146]
[1727863032607,0.02716297,61397.0,61396.0,0.17944846]
[1727863032816,0.02716297,61397.0,61396.0,0.01657146]
[1727863033027,0.02716297,61397.0,61396.0,0.18270563]
[1727863033241,0.02716297,61397.0,61396.0,0.17944846]
[1727863033673,0.02716297,61397.0,61396.0,0.25276795]
[1727863033891,0.02716297,61397.0,61396.0,0.17944846]
[1727863034348,0.02716297,61397.0,61396.0,0.22832828]
[1727863035107,0.02716297,61397.0,61396.0,0.17944846]
[1727863035355,0.02716297,61397.0,61396.0,0.53407286]
[1727863035575,0.02716297,61397.0,61396.0,0.55625337]
[1727863035785,0.02716297,61397.0,61396.0,0.80844882]
[1727863035997,0.001636,61417.0,61412.0,0.325665]
[1727863036208,0.001636,61417.0,61416.0,0.31472649]
[1727863036828,0.001636,61417.0,61416.0,0.32320973]
[1727863038904,0.001636,61417.0,61416.0,0.34620973]
[1727863039318,0.001636,61417.0,61416.0,0.34720973]
[1727863040787,0.001636,61417.0,61416.0,0.34620973]
[1727863040974,0.001636,61417.0,61416.0,0.35720973]
[1727863041210,0.001636,61417.0,61416.0,0.36820973]
[1727863042507,0.001636,61417.0,61416.0,0.95486283]
[1727863042931,0.001636,61417.0,61416.0,0.71180418]
[1727863043137,0.001636,61417.0,61416.0,0.78510727]
[1727863043347,0.001636,61417.0,61416.0,0.76053758]
[1727863043348,0.02715328,61417.0,61416.0,0.76053758]
[1727863043562,0.02715328,61417.0,61416.0,0.71180418]
[1727863044444,0.02715328,61417.0,61416.0,0.81680418]
[1727863044866,0.001636,61424.0,61423.0,0.023]
[1727863045079,0.001636,61424.0,61423.0,0.67905714]
[1727863045277,0.001636,61424.0,61423.0,0.72155316]
[1727863046693,0.001636,61427.0,61426.0,0.405557]
[1727863046938,0.001636,61427.0,61426.0,0.57025145]
[1727863047475,0.001636,61427.0,61426.0,0.62692325]
[1727863047714,0.001636,61427.0,61426.0,0.57828785]
[1727863048435,0.001636,61427.0,61426.0,0.59228785]
[1727863048670,0.001636,61427.0,61426.0,0.60628785]
[1727863049758,0.001636,61427.0,61426.0,0.75819034]
[1727863051071,0.001636,61427.0,61426.0,0.76019034]
[1727863051585,0.02714831,61427.0,61426.0,0.75819034]
[1727863053173,0.02714831,61427.0,61426.0,0.62053034]
[1727863053653,0.001636,61427.0,61426.0,0.62053034]
[1727863053895,0.001636,61427.0,61426.0,0.43283589]
[1727863054419,0.001636,61427.0,61426.0,0.1988334]
[1727863054665,0.001636,61427.0,61426.0,0.1708334]
[1727863054930,0.001636,61427.0,61426.0,0.0220364]
[1727863055129,0.001636,61427.0,61426.0,0.0360364]
[1727863055378,0.001636,61427.0,61426.0,0.0220364]
[1727863055622,0.24593,61427.0,61426.0,0.0220364]
[1727863055844,0.24593,61427.0,61426.0,0.0290364]
[1727863055845,0.66252694,61427.0,61426.0,0.0290364]
[1727863056095,0.66252694,61427.0,61426.0,0.021]
[1727863056346,0.51062445,61427.0,61426.0,0.021]
[1727863056794,0.53614458,61427.0,61426.0,0.007]
[1727863057003,0.53614458,61427.0,61426.0,0.015]
[1727863057464,0.53614458,61427.0,61426.0,0.007]
[1727863057768,0.51362445,61427.0,61426.0,0.008]
[1727863058183,0.51062445,61427.0,61426.0,0.007]
[1727863058393,0.1,61426.0,61417.0,0.24305865]
[1727863058589,0.34783045,61427.0,61417.0,0.24305865]
[1727863058590,0.162818,61418.0,61417.0,0.24305865]
[1727863058969,0.162818,61418.0,61417.0,0.00803365]
[1727863059176,0.162828,61415.0,61413.0,0.15515876]
[1727863059395,0.162828,61415.0,61413.0,0.15190249]
[1727863059599,0.162828,61415.0,61414.0,0.00803365]
[1727863060236,0.325649,61416.0,61414.0,0.00803365]
[1727863060237,0.162824,61416.0,61414.0,0.00803365]
[1727863060633,0.325647,61417.0,61414.0,0.00803365]
[1727863060842,0.162824,61416.0,61414.0,0.0112899]
[1727863061047,0.162821,61417.0,61414.0,0.00803365]
[1727863061279,0.162821,61417.0,61414.0,0.01503365]
[1727863061482,0.325636,61419.0,61414.0,0.01203365]
[1727863061703,0.162825,61416.0,61414.0,0.0152899]
[1727863061905,0.162825,61416.0,61414.0,0.01303365]
[1727863062127,0.18834688,61416.0,61414.0,0.01303365]
[1727863062472,0.02552188,61416.0,61415.0,0.162826]
[1727863062693,0.02552188,61416.0,61414.0,0.00903365]
[1727863062895,0.02552188,61416.0,61414.0,0.001]
[1727863063099,0.02552188,61416.0,61415.0,0.00819937]
[1727863063450,0.162818,61419.0,61415.0,0.17102437]
[1727863063660,0.49029545,61425.0,61415.0,0.00819937]
[1727863063874,0.16282,61418.0,61415.0,0.01145556]
[1727863064125,0.16282,61418.0,61415.0,0.00819937]
[1727863064344,0.16282,61418.0,61414.0,0.000818]
[1727863064551,0.001,61419.0,61415.0,0.00819468]
[1727863064761,0.325622,61421.0,61415.0,0.00819468]
[1727863064762,0.162812,61421.0,61417.0,0.162821]
[1727863064968,0.1,61424.0,61416.0,0.0032561]
[1727863065174,0.325617,61422.0,61416.0,0.0032561]
[1727863065378,0.162819,61418.0,61416.0,0.0032561]
[1727863065585,0.162819,61418.0,61415.0,0.00325617]
[1727863066016,0.325629,61420.0,61415.0,0.00425617]
[1727863066231,0.162819,61418.0,61415.0,0.00425617]
[1727863066439,0.162819,61418.0,61415.0,0.00325617]
[1727863066638,0.18834045,61418.0,61415.0,0.00325617]
[1727863066841,0.18834045,61418.0,61415.0,0.00825617]
[1727863067055,0.162821,61417.0,61415.0,0.00825617]
[1727863067263,0.162821,61417.0,61415.0,0.005]
[1727863067477,0.162821,61417.0,61415.0,0.009]
[1727863068087,0.162821,61417.0,61415.0,0.005]
[1727863068287,0.02552145,61418.0,61415.0,0.005]
[1727863068288,0.162824,61416.0,61415.0,0.005]
[1727863068498,0.162824,61416.0,61415.0,0.011]
[1727863069330,0.162824,61416.0,61415.0,0.006]
[1727863069533,0.162824,61416.0,61415.0,0.012]
[1727863070147,0.162824,61416.0,61415.0,0.006]
[1727863070363,0.162824,61416.0,61415.0,0.001]
[1727863071400,0.162824,61416.0,61415.0,0.0091926]
[1727863071607,0.162824,61416.0,61415.0,0.001]
[1727863071803,0.163824,61416.0,61415.0,0.001]
[1727863072207,0.162824,61416.0,61415.0,0.001]
[1727863072430,0.162826,61415.0,61414.0,0.000818]
[1727863073494,0.164826,61415.0,61414.0,0.000818]
[1727863073911,0.002,61415.0,61414.0,0.000818]
[1727863074109,0.003,61415.0,61414.0,0.0090106]
[1727863074944,0.002,61415.0,61414.0,0.0090106]
[1727863075150,0.002,61415.0,61414.0,0.0100106]
[1727863075568,0.162821,61417.0,61414.0,0.0100106]
[1727863075793,0.162825,61416.0,61414.0,0.0100106]
[1727863076024,0.51398045,61418.0,61414.0,0.1748386]
[1727863076215,0.162825,61416.0,61414.0,0.0120106]
[1727863076428,0.325643,61417.0,61414.0,0.0100106]
[1727863076651,0.02552145,61418.0,61415.0,0.15190249]
[1727863076810,0.02552145,61418.0,61416.0,0.162823]
[1727863077005,0.02552145,61418.0,61416.0,0.00820783]
[1727863077212,0.02552145,61418.0,61417.0,0.162821]
[1727863077654,0.02552145,61418.0,61417.0,0.2696771]
[1727863077869,0.02552145,61418.0,61417.0,0.27788493]
[1727863078077,0.02752145,61418.0,61417.0,0.27788493]
[1727863078284,0.02552145,61418.0,61417.0,0.27462883]
[1727863078502,0.02752145,61418.0,61417.0,0.27462883]
[1727863078982,0.02852145,61418.0,61417.0,0.19402883]
[1727863079405,0.02752145,61418.0,61417.0,0.00820783]
[1727863079646,0.02852145,61418.0,61417.0,0.00820783]
[1727863079881,0.02852145,61418.0,61414.0,0.000818]
[1727863079882,0.162821,61417.0,61414.0,0.000818]
[1727863080209,0.162821,61417.0,61414.0,0.163646]
[1727863080354,0.35416045,61418.0,61414.0,0.000818]
[1727863080567,0.162826,61415.0,61414.0,0.000818]
[1727863081830,0.162826,61415.0,61414.0,0.001818]
[1727863082718,0.35116345,61418.0,61414.0,0.001818]
[1727863082719,0.02552145,61418.0,61414.0,0.001818]
[1727863082923,0.02552145,61418.0,61417.0,0.162821]
[1727863083352,0.02552145,61418.0,61417.0,0.16607702]
[1727863083575,0.02552145,61418.0,61417.0,0.334421]
[1727863083792,0.162806,61423.0,61417.0,0.1716]
[1727863084057,0.162821,61417.0,61414.0,0.002818]
[1727863084300,0.325625,61421.0,61414.0,0.000818]
[1727863084522,0.325645,61417.0,61414.0,0.000818]
[1727863084771,0.162826,61415.0,61414.0,0.000818]
[1727863085049,0.325635,61419.0,61414.0,0.000818]
[1727863085229,0.001638,61425.0,61414.0,0.000818]
[1727863085454,0.162824,61416.0,61415.0,0.00816752]
[1727863085681,0.325644,61417.0,61414.0,0.000818]
[1727863085892,0.162826,61415.0,61414.0,0.000818]
[1727863086532,0.32752045,61415.0,61414.0,0.000818]
[1727863086949,0.325632,61419.0,61414.0,0.001818]
[1727863087156,0.02552361,61415.0,61414.0,0.001818]
[1727863087358,0.02552361,61415.0,61414.0,0.164647]
[1727863087560,0.02552361,61415.0,61414.0,0.001818]
[1727863087818,0.02552361,61415.0,61414.0,0.000818]
[1727863088622,0.18834961,61415.0,61414.0,0.001818]
[1727863088839,0.02552361,61415.0,61414.0,0.001818]
[1727863089671,0.18834961,61415.0,61414.0,0.001818]
[1727863089880,0.35304406,61415.0,61414.0,0.001818]
[1727863090092,0.35304406,61415.0,61414.0,0.003818]
[1727863090517,0.50542045,61415.0,61414.0,0.003818]
[1727863090939,0.50542045,61415.0,61414.0,0.000818]
[1727863091831,0.50642045,61415.0,61414.0,0.001818]
[1727863092687,0.50642045,61415.0,61414.0,0.002818]
[1727863093167,0.50642045,61415.0,61414.0,0.001818]
[1727863093376,0.162853,61405.0,61404.0,0.24305865]
[1727863093588,0.42754745,61405.0,61404.0,0.24305865]
[1727863093796,0.45307725,61405.0,61404.0,0.25121317]
[1727863093999,0.162874,61397.0,61396.0,0.000818]
[1727863094414,0.1,61404.0,61396.0,0.00897252]
[1727863094622,0.1,61400.0,61397.0,0.0032572]
[1727863094830,0.1,61400.0,61397.0,0.162872]
[1727863095036,0.1,61400.0,61398.0,0.00830563]
[1727863095249,0.162869,61399.0,61398.0,0.00830563]
[1727863095500,0.162874,61397.0,61396.0,0.000818]
[1727863095923,0.162874,61397.0,61396.0,0.0091284]
[1727863096145,0.162874,61397.0,61396.0,0.000818]
[1727863096356,0.262874,61397.0,61396.0,0.000818]
[1727863096803,0.262874,61397.0,61396.0,0.005818]
[1727863097007,0.42756845,61397.0,61396.0,0.005818]
[1727863097219,0.53946512,61397.0,61396.0,0.009818]
[1727863097435,0.53946512,61397.0,61396.0,0.000818]
[1727863097436,0.56499783,61397.0,61396.0,0.000818]
[1727863097650,0.45510116,61397.0,61396.0,0.000818]
[1727863098097,0.45810116,61397.0,61396.0,0.000818]
[1727863098314,0.45510116,61397.0,61396.0,0.000818]
[1727863098531,0.43256845,61397.0,61396.0,0.001818]
[1727863098943,0.5692386,61397.0,61396.0,0.001818]
[1727863099197,0.5692386,61397.0,61387.0,0.000818]
[1727863099198,0.164882,61394.0,61387.0,0.000818]
[1727863099446,0.66337894,61394.0,61387.0,0.000818]
[1727863099694,0.264898,61388.0,61387.0,0.000818]
[1727863099935,0.63169494,61388.0,61387.0,0.000818]
[1727863100375,0.88359963,61388.0,61387.0,0.000818]
[1727863100600,0.72269494,61388.0,61387.0,0.000818]
[1727863101020,0.73269494,61388.0,61387.0,0.001818]
[1727863101248,0.75569494,61388.0,61387.0,0.001818]
[1727863101665,0.78123499,61388.0,61387.0,0.001818]
[1727863102290,0.78523499,61388.0,61387.0,0.002818]
[1727863102695,0.76023499,61388.0,61387.0,0.002818]
[1727863103077,0.76223499,61388.0,61387.0,0.002818]
[1727863103488,0.73669494,61388.0,61387.0,0.002818]
[1727863104921,0.90157676,61388.0,61387.0,0.002818]
[1727863105747,0.262938,61373.0,61372.0,0.24305865]
[1727863105949,0.57953494,61373.0,61372.0,0.2517345]
[1727863106150,0.42763245,61373.0,61372.0,0.2517345]
[1727863106362,0.26469445,61373.0,61365.0,0.24305865]
[1727863106573,0.162956,61366.0,61365.0,0.24305865]
[1727863106992,0.16469445,61372.0,61363.0,0.000818]
[1727863107203,0.162961,61364.0,61363.0,0.000818]
[1727863108040,0.18850333,61364.0,61363.0,0.000818]
[1727863108454,0.35419778,61364.0,61363.0,0.000818]
[1727863108651,0.45419778,61364.0,61363.0,0.000818]
[1727863109285,0.42865545,61364.0,61363.0,0.000818]
[1727863109892,0.42765545,61364.0,61363.0,0.000818]
[1727863110028,0.43265545,61364.0,61363.0,0.000818]
[1727863110231,0.43665545,61364.0,61363.0,0.000818]
[1727863111056,1.00915309,61364.0,61363.0,0.000818]
[1727863111229,0.80831366,61364.0,61363.0,0.000818]
[1727863111876,0.33968322,61363.0,61354.0,0.000817]
[1727863112098,0.262985,61355.0,61354.0,0.000817]
[1727863112298,0.57958194,61355.0,61354.0,0.000817]
[1727863112508,0.62380116,61355.0,61354.0,0.000817]
[1727863112710,0.163017,61343.0,61338.0,0.000818]
[1727863112916,0.32771145,61343.0,61338.0,0.000818]
[1727863113116,0.163028,61339.0,61338.0,0.000818]
[1727863113317,0.32772245,61339.0,61338.0,0.000818]
[1727863115343,0.35327844,61339.0,61338.0,0.000818]
[1727863119058,0.18858399,61339.0,61338.0,0.000818]
[1727863119488,0.02555599,61339.0,61338.0,0.000818]
[1727863119640,0.02555599,61339.0,61338.0,0.26624067]
[1727863119841,0.02855599,61339.0,61338.0,0.256749]
[1727863120042,0.02855599,61339.0,61338.0,0.26624067]
[1727863120489,0.02855599,61339.0,61338.0,0.01030967]
[1727863120490,0.35627844,61339.0,61338.0,0.01030967]
[1727863120900,0.35627844,61339.0,61338.0,0.000818]
[1727863122307,0.35727844,61339.0,61338.0,0.000818]
[1727863122586,0.62216026,61339.0,61338.0,0.000818]
[1727863122789,0.62416026,61339.0,61338.0,0.000818]
[1727863122990,0.59660427,61339.0,61338.0,0.000818]
[1727863123215,0.59860427,61339.0,61338.0,0.000818]
[1727863123837,0.64082349,61339.0,61338.0,0.000818]
[1727863124053,0.60260427,61339.0,61338.0,0.000818]
[1727863124259,0.33772245,61339.0,61338.0,0.000818]
[1727863124488,0.33472245,61339.0,61338.0,0.000818]
[1727863124906,0.17769445,61339.0,61338.0,0.000818]
[1727863125108,0.34072245,61339.0,61338.0,0.000818]
[1727863125312,0.33472245,61339.0,61338.0,0.01035943]
[1727863125520,0.33472245,61339.0,61338.0,0.000818]
[1727863125696,0.33072245,61339.0,61338.0,0.01035943]
[1727863125847,0.33072245,61339.0,61338.0,0.000818]
[1727863126049,0.36327704,61339.0,61338.0,0.000818]
[1727863126249,0.35727704,61339.0,61338.0,0.004818]
[1727863126454,0.33172245,61339.0,61338.0,0.004818]
[1727863126931,0.16869445,61339.0,61338.0,0.004818]
[1727863127563,0.16769445,61339.0,61338.0,0.01035943]
[1727863127764,0.33072245,61339.0,61338.0,0.01035943]
[1727863127980,0.33072245,61339.0,61338.0,0.01435943]
[1727863128193,0.003,61339.0,61338.0,0.01435943]
[1727863128605,0.166028,61339.0,61338.0,0.01435943]
[1727863130925,0.19158252,61339.0,61338.0,0.01435943]
[1727863135283,0.02855452,61339.0,61338.0,0.01435943]
[1727863135538,0.166028,61339.0,61338.0,0.01435943]
[1727863135786,0.003,61339.0,61338.0,0.004818]
[1727863136036,0.32603,61345.0,61338.0,0.0918646]
[1727863136269,0.24305865,61346.0,61343.0,0.163016]
[1727863136530,0.24305865,61346.0,61341.0,0.15190249]
[1727863136531,0.5707631,61346.0,61341.0,0.15190249]
[1727863136785,0.489038,61345.0,61344.0,0.00950363]
[1727863137061,0.163027,61340.0,61338.0,0.082318]
[1727863137317,0.163022,61342.0,61338.0,0.245348]
[1727863137594,0.163022,61342.0,61338.0,0.241348]
[1727863137947,0.74788217,61386.0,61341.0,0.15190249]
[1727863137948,0.325999,61350.0,61341.0,0.15190249]
[1727863137951,0.162981,61357.0,61353.0,0.162991]
[1727863138146,0.56903165,61355.0,61348.0,0.15190249]
[1727863138415,0.162991,61353.0,61349.0,0.163001]
[1727863138586,0.162991,61353.0,61348.0,0.15190249]
[1727863138587,0.18854051,61353.0,61348.0,0.15190249]
[1727863138818,0.162996,61352.0,61348.0,0.15190249]
[1727863139026,0.02554851,61353.0,61348.0,0.15190249]
[1727863139225,0.02554851,61353.0,61349.0,0.00947154]
[1727863139423,0.325989,61352.0,61345.0,0.163011]
[1727863139626,0.325989,61352.0,61346.0,0.00947154]
[1727863139627,0.162995,61352.0,61346.0,0.00947154]
[1727863139824,0.35153051,61353.0,61345.0,0.326023]
[1727863140125,0.35153051,61353.0,61346.0,0.163008]
[1727863140356,0.162997,61351.0,61347.0,0.00947154]
[1727863140525,0.02554851,61353.0,61349.0,0.004]
[1727863140884,0.02554851,61353.0,61350.0,0.00947154]
[1727863141109,0.02554851,61353.0,61352.0,0.48919549]
[1727863141535,0.02554851,61353.0,61352.0,0.49866703]
[1727863142413,0.02554851,61353.0,61352.0,0.50266703]
[1727863142625,0.02554851,61353.0,61352.0,0.33967403]
[1727863142832,0.18853951,61353.0,61352.0,0.33967403]
[1727863143046,0.18853951,61353.0,61352.0,0.18777154]
[1727863143261,0.02554851,61353.0,61352.0,0.18777154]
[1727863143512,0.18853951,61353.0,61352.0,0.18777154]
[1727863143719,0.18853951,61353.0,61352.0,0.18977154]
[1727863143927,0.18853951,61353.0,61352.0,0.099]
[1727863144662,0.02554851,61353.0,61352.0,0.099]
[1727863144875,0.02554851,61353.0,61352.0,0.24690249]
[1727863145076,0.02554851,61353.0,61352.0,0.2562612]
[1727863145583,0.02554851,61353.0,61352.0,0.4192542]
[1727863145824,0.02554851,61353.0,61352.0,0.5017542]
[1727863146086,0.02718851,61353.0,61352.0,0.5017542]
[1727863146309,0.00164,61353.0,61352.0,0.5017542]
[1727863146526,0.00164,61353.0,61352.0,0.57577195]
[1727863146736,0.00164,61353.0,61352.0,0.84842767]
[1727863146944,0.0170637,61370.0,61353.0,0.332491]
[1727863147148,0.325901,61369.0,61353.0,0.58186361]
[1727863147360,0.325901,61369.0,61353.0,0.67923902]
[1727863147361,0.162957,61366.0,61353.0,0.67923902]
[1727863147571,0.162952,61368.0,61353.0,0.71281004]
[1727863148015,0.0170637,61370.0,61353.0,0.71281004]
[1727863148249,0.00264,61354.0,61353.0,0.59311737]
[1727863148490,0.00264,61354.0,61353.0,0.69047972]
[1727863149000,0.00264,61354.0,61353.0,0.69747833]
[1727863149001,0.00364,61354.0,61353.0,0.69747833]
[1727863149226,0.00364,61354.0,61353.0,0.60011737]
[1727863149648,0.00264,61354.0,61353.0,0.67114059]
[1727863149880,0.00364,61354.0,61353.0,0.67314059]
[1727863150157,0.00364,61354.0,61353.0,0.78781182]
[1727863150378,0.00364,61354.0,61353.0,0.86102977]
[1727863150597,0.00364,61354.0,61353.0,0.53843921]
[1727863151018,0.00364,61354.0,61353.0,0.58712114]
[1727863152520,0.00364,61354.0,61353.0,0.6903417]
[1727863153607,0.00164,61364.0,61363.0,0.162964]
[1727863153846,0.00164,61364.0,61363.0,0.33372276]
[1727863154088,0.00164,61364.0,61363.0,0.50427422]
[1727863154327,0.00164,61364.0,61363.0,0.52727422]
[1727863154992,0.00164,61364.0,61363.0,0.53427422]
[1727863154993,0.02817999,61364.0,61363.0,0.53427422]
[1727863155418,0.02717999,61364.0,61363.0,0.52727422]
[1727863155632,0.24305865,61379.0,61378.0,0.238524]
[1727863155850,0.24305865,61379.0,61378.0,0.39042649]
[1727863156075,0.162917,61381.0,61378.0,0.23661826]
[1727863156301,0.162915,61382.0,61378.0,0.39954126]
[1727863156732,0.162915,61382.0,61378.0,0.40354126]
[1727863156940,0.162915,61382.0,61379.0,0.162921]
[1727863157160,0.325821,61384.0,61378.0,0.23661826]
[1727863157161,0.162917,61381.0,61378.0,0.23661826]
[1727863157374,0.162917,61381.0,61378.0,0.22950249]
[1727863157619,0.162912,61383.0,61380.0,0.162918]
[1727863157825,0.162917,61381.0,61378.0,0.23050249]
[1727863158037,0.162917,61381.0,61379.0,0.00911577]
[1727863158270,0.162919,61380.0,61379.0,0.00911577]
[1727863159145,0.162919,61380.0,61378.0,0.002]
[1727863159146,0.162922,61379.0,61378.0,0.002]
[1727863159572,0.162922,61379.0,61378.0,0.003]
[1727863159788,0.162918,61381.0,61376.0,0.162928]
[1727863160002,0.162918,61381.0,61375.0,0.47776549]
[1727863160003,0.162925,61378.0,61375.0,0.15190249]
[1727863160234,0.001638,61382.0,61377.0,0.00903347]
[1727863160444,0.162924,61379.0,61375.0,0.15190249]
[1727863160656,0.162924,61379.0,61378.0,0.001]
[1727863160871,0.162924,61379.0,61378.0,0.003]
[1727863161081,0.162922,61379.0,61378.0,0.002]
[1727863161323,0.162922,61379.0,61378.0,0.00903347]
[1727863161567,0.162922,61379.0,61375.0,0.31883449]
[1727863161805,0.162922,61379.0,61378.0,0.00903347]
[1727863162050,0.162924,61378.0,61375.0,0.32183449]
[1727863162292,0.325834,61381.0,61376.0,0.162929]
[1727863162293,0.162923,61379.0,61376.0,0.162929]
[1727863162534,0.325835,61381.0,61375.0,0.15490249]
[1727863162535,0.16293,61376.0,61375.0,0.15490249]
[1727863162783,0.16293,61376.0,61375.0,0.003]
[1727863163021,0.325839,61380.0,61369.0,0.162947]
[1727863163261,0.162941,61372.0,61369.0,0.162947]
[1727863163710,0.162938,61373.0,61370.0,0.162945]
[1727863163926,0.162938,61373.0,61366.0,0.22780249]
[1727863163927,0.325879,61373.0,61366.0,0.22780249]
[1727863164212,0.16293,61376.0,61375.0,0.01]
[1727863164439,0.32762445,61376.0,61375.0,0.005]
[1727863164662,0.488809,61374.0,61367.0,0.24305865]
[1727863164869,0.162951,61368.0,61367.0,0.24305865]
[1727863165313,0.162951,61368.0,61366.0,0.15190249]
[1727863165538,0.325899,61369.0,61366.0,0.15190249]
[1727863165764,0.162954,61367.0,61366.0,0.15190249]
[1727863165972,0.162946,61370.0,61369.0,0.009]
[1727863166214,0.162952,61368.0,61366.0,0.15190249]
[1727863166423,0.163952,61368.0,61366.0,0.16490249]
[1727863166841,0.162952,61368.0,61366.0,0.15190249]
[1727863167055,0.001,61367.0,61366.0,0.16590249]
[1727863167261,0.001,61367.0,61366.0,0.32885849]
[1727863167531,0.001,61367.0,61366.0,0.31485849]
[1727863167739,0.001,61367.0,61366.0,0.16490249]
[1727863167963,0.001,61367.0,61366.0,0.32785849]
[1727863168185,0.001,61367.0,61366.0,0.34085849]